fUSD/lending_fUSD_20250108
["ID","MTS","AMOUNT","RATE_DAILY","PERIOD"]
[348190607,1736374250444,-500.0,0.00011643,2]
[348190608,1736374250454,-1455.22,0.00011643,2]
[348190609,1736374250463,-500.0,0.00011643,2]
[348190611,1736374250472,-2149.02,0.00011643,2]
[348190613,1736374250482,-1224.29,0.00011643,2]
[348190615,1736374250491,-4333.65,0.00011643,2]
[348190617,1736374250501,-1960.58,0.00011643,2]
[348190619,1736374250510,-1063.62,0.00011643,2]
[348190621,1736374250519,-568.79,0.00011643,2]
[348190623,1736374250529,-2372.76,0.00011643,2]
[348190625,1736374250539,-500.0,0.00011643,2]
[348190627,1736374250549,-1185.4,0.00011643,2]
[348190629,1736374250559,-1874.57,0.00011643,2]
[348190631,1736374250570,-1217.99,0.00011643,2]
[348190633,1736374250582,-500.0,0.00011643,2]
[348190635,1736374250592,-500.0,0.00011643,2]
[348190637,1736374250601,-920.56,0.00011643,2]
[348190638,1736374250611,-2562.5,0.00011643,2]
[348190641,1736374250620,-500.0,0.00011681,2]
[348190643,1736374250630,-684.21,0.00011681,2]
[348190644,1736374250640,-1105.88,0.00011681,2]
[348190646,1736374250649,-812.69,0.00011681,2]
[348190648,1736374250659,-887.64,0.00011681,2]
[348190651,1736374250669,-500.0,0.00011681,2]
[348190653,1736374250678,-1000.0,0.00011681,2]
[348190655,1736374250688,-500.0,0.00011682,2]
[348190656,1736374250698,-1745.65,0.00011682,2]
[348190659,1736374250708,-1254.01,0.00011682,2]
[348190660,1736374250717,-202.76042521,0.00011733,2]
[348190662,1736374250726,-500.0,0.0001178,2]
[348190664,1736374250735,-500.0,0.0001178,2]
[348190666,1736374250745,-500.0,0.0001178,2]
[348190668,1736374250755,-500.0,0.0001178,2]
[348190670,1736374250764,-200.0,0.000118,2]
[348190672,1736374250773,-150.227651,0.00011812,2]
[348190674,1736374250782,-607.52275236,0.000119,5]
[348190676,1736374250792,-202.76042521,0.000119,2]
[348190678,1736374250801,-500.0,0.00011915,2]
[348190680,1736374250811,-500.0,0.00011915,2]
[348190682,1736374250820,-500.0,0.00011915,2]
[348190684,1736374250830,-1184.83,0.00011915,2]
[348190686,1736374250839,-2822.92,0.00011915,2]
[348190688,1736374250849,-791.42,0.00011915,2]
[348190690,1736374250858,-604.89,0.00011915,2]
[348190692,1736374250867,-500.0,0.00011915,2]
[348190694,1736374250876,-500.0,0.00011915,2]
[348190696,1736374250886,-2124.34,0.00011915,2]
[348190698,1736374250896,-1365.63,0.00011915,2]
[348190700,1736374250906,-500.0,0.00011915,2]
[348190702,1736374250916,-2596.48,0.00011915,2]
[348190704,1736374250926,-689.69,0.00011915,2]
[348190706,1736374250937,-500.0,0.00011915,2]
[348190708,1736374250946,-500.0,0.00011915,2]
[348190710,1736374250956,-1399.1,0.00011915,2]
[348190712,1736374250966,-816.75,0.00011915,2]
[348190714,1736374250976,-838.45,0.00011915,2]
[348190716,1736374250985,-1739.36,0.00011915,2]
[348190718,1736374250995,-531.02,0.00011915,2]
[348190720,1736374251005,-988.241,0.00011916,2]
[348190722,1736374251015,-500.0,0.00011916,2]
[348190724,1736374251024,-500.0,0.00011916,2]
[348190726,1736374251034,-500.0,0.00011916,2]
[348190728,1736374251044,-500.0,0.00011916,2]
[348190730,1736374251053,-500.0,0.00011916,2]
[348190732,1736374251062,-519.8,0.00011916,2]
[348190734,1736374251071,-382.53123827,0.00011916,2]
[348190736,1736374251081,-500.0,0.00011916,2]
[348190738,1736374251091,-500.0,0.00011916,2]
[348190740,1736374251101,-614.24,0.00011916,2]
[348190742,1736374251110,-500.0,0.00011916,2]
[348190744,1736374251120,-500.0,0.00011916,2]
[348190746,1736374251129,-500.0,0.00011916,2]
[348190748,1736374251139,-507.8,0.00011916,2]
[348190750,1736374251149,-510.39,0.00011916,2]
[348190752,1736374251159,-500.0,0.00011916,2]
[348190755,1736374251170,-598.967199,0.00011916,2]
[348190757,1736374251179,-582.56,0.00011916,2]
[348190758,1736374251190,-500.0,0.00011916,2]
[348190760,1736374251199,-595.62,0.00011916,2]
[348190762,1736374251209,-478.29642577,0.00011916,2]
[348190764,1736374251219,-500.0,0.00011916,2]
[348190766,1736374251229,-604.327869,0.00011916,2]
[348190768,1736374251239,-500.0,0.00011916,2]
[348190770,1736374251248,-565.97539768,0.00011916,2]
[348190772,1736374251258,-985.85,0.00011916,2]
[348190774,1736374251267,-500.0,0.00011916,2]
[348190777,1736374251276,-500.0,0.00011916,2]
[348190778,1736374251285,-500.0,0.00011916,2]
[348190781,1736374251295,-500.0,0.00011916,2]
[348190782,1736374251304,-500.0,0.00011916,2]
[348190784,1736374251313,-500.0,0.00011916,2]
[348190786,1736374251322,-500.0,0.00011916,2]
[348190788,1736374251332,-500.0,0.00011916,2]
[348190790,1736374251341,-346.0833364,0.00011916,2]
[348190792,1736374251351,-500.0,0.00011916,2]
[348190794,1736374251361,-567.92837844,0.00011916,2]
[348190796,1736374251369,-500.0,0.00011916,2]
[348190798,1736374251379,-500.0,0.00011916,2]
[348190800,1736374251388,-500.0,0.00011916,2]
[348190802,1736374251398,-500.0,0.00011916,2]
[348190804,1736374251407,-2012.04,0.00011916,2]
[348190806,1736374251416,-500.0,0.00011916,2]
[348190808,1736374251425,-509.2,0.00011916,2]
[348190810,1736374251435,-500.0,0.00011916,2]
[348190812,1736374251445,-555.17,0.00011916,2]
[348190814,1736374251454,-500.0,0.00011916,2]
[348190816,1736374251464,-500.0,0.00011916,2]
[348190818,1736374251473,-500.0,0.00011916,2]
[348190820,1736374251483,-2650.73,0.00011916,2]
[348190822,1736374251492,-500.0,0.00011916,2]
[348190824,1736374251502,-500.0,0.00011916,2]
[348190826,1736374251511,-814.33,0.00011916,2]
[348190828,1736374251521,-500.0,0.00011916,2]
[348190830,1736374251531,-500.0,0.00011916,2]
[348190832,1736374251541,-2244.55,0.00011916,2]
[348190834,1736374251550,-500.0,0.00011916,2]
[348190836,1736374251560,-1475.16,0.00011916,2]
[348190838,1736374251570,-500.0,0.00011916,2]
[348190840,1736374251581,-618.95,0.00011916,2]
[348190842,1736374251591,-500.0,0.00011916,2]
[348190844,1736374251600,-1755.78,0.00011916,2]
[348190846,1736374251610,-500.0,0.00011916,2]
[348190848,1736374251620,-1285.61,0.00011916,2]
[348190850,1736374251629,-2478.11,0.00011916,2]
[348190852,1736374251639,-499.33281469,0.00011916,2]
[348190854,1736374251648,-1061.59,0.00011916,2]
[348190856,1736374251660,-500.0,0.00011916,2]
[348190858,1736374251670,-500.0,0.00011916,2]
[348190860,1736374251680,-500.0,0.00011916,2]
[348190862,1736374251690,-500.0,0.00011916,2]
[348190864,1736374251699,-687.93,0.00011916,2]
[348190866,1736374251709,-500.0,0.00011916,2]
[348190868,1736374251719,-500.0,0.00011916,2]
[348190870,1736374251728,-2314.79,0.00011916,2]
[348190872,1736374251737,-1106.22,0.00011916,2]
[348190874,1736374251747,-500.0,0.00011916,2]
[348190876,1736374251757,-500.0,0.00011916,2]
[348190878,1736374251766,-500.0,0.00011916,2]
[348190880,1736374251776,-1752.27,0.00011916,2]
[348190882,1736374251785,-500.0,0.00011916,2]
[348190884,1736374251795,-500.0,0.00011916,2]
[348190886,1736374251804,-500.0,0.00011916,2]
[348190888,1736374251813,-500.0,0.00011916,2]
[348190890,1736374251823,-703.34,0.00011916,2]
[348190892,1736374251832,-500.0,0.00011916,2]
[348190894,1736374251842,-503.53,0.00011916,2]
[348190896,1736374251851,-500.0,0.00011916,2]
[348190898,1736374251860,-857.32,0.00011916,2]
[348190900,1736374251870,-500.0,0.00011916,2]
[348190902,1736374251879,-1302.08,0.00011916,2]
[348190904,1736374251888,-1578.04,0.00011916,2]
[348190906,1736374251898,-500.0,0.00011916,2]
[348190908,1736374251908,-1098.41,0.00011916,2]
[348190910,1736374251918,-500.0,0.00011916,2]
[348190912,1736374251927,-500.0,0.00011916,2]
[348190914,1736374251937,-1348.88,0.00011916,2]
[348190916,1736374251947,-500.0,0.00011916,2]
[348190917,1736374251956,-500.0,0.00011916,2]
[348190919,1736374251966,-2453.48,0.00011916,2]
[348190922,1736374251976,-837.69,0.00011917,2]
[348190924,1736374251986,-1266.37,0.00011917,2]
[348190926,1736374251995,-500.0,0.00011917,2]
[348190928,1736374252004,-787.11,0.00011917,2]
[348190929,1736374252013,-500.0,0.00011917,2]
[348190931,1736374252023,-1166.62,0.00011917,2]
[348190933,1736374252032,-500.0,0.00011917,2]
[348190936,1736374252042,-565.92,0.00011917,2]
[348190937,1736374252052,-519.1,0.00011917,2]
[348190939,1736374252061,-500.0,0.00011917,2]
[348190941,1736374252072,-508.78,0.00011917,2]
[348190943,1736374252082,-500.0,0.00011917,2]
[348190946,1736374252092,-500.0,0.00011917,2]
[348190948,1736374252102,-500.0,0.00011917,2]
[348190949,1736374252112,-1205.93,0.00011917,2]
[348190951,1736374252122,-500.0,0.00011917,2]
[348190953,1736374252132,-500.0,0.00011917,2]
[348190956,1736374252142,-712.18,0.00011917,2]
[348190958,1736374252152,-500.0,0.00011917,2]
[348190960,1736374252162,-638.99,0.00011917,2]
[348190962,1736374252172,-612.36,0.00011917,2]
[348190963,1736374252182,-500.0,0.00011917,2]
[348190966,1736374252193,-595.66,0.00011917,2]
[348190968,1736374252203,-2799.24,0.00011917,2]
[348190969,1736374252213,-548.18,0.00011917,2]
[348190971,1736374252223,-1302.79,0.00011917,2]
[348190974,1736374252233,-500.0,0.00011917,2]
[348190976,1736374252242,-500.0,0.00011917,2]
[348190978,1736374252253,-1038.02,0.00011917,2]
[348190979,1736374252262,-1613.85,0.00011917,2]
[348190982,1736374252271,-500.0,0.00011917,2]
[348190984,1736374252281,-1455.22,0.00011917,2]
[348190986,1736374252290,-500.0,0.00011917,2]
[348190987,1736374252300,-2149.02,0.00011917,2]
[348190989,1736374252309,-1224.29,0.00011917,2]
[348190992,1736374252320,-4333.65,0.00011917,2]
[348190994,1736374252329,-1960.58,0.00011917,2]
[348190995,1736374252339,-1063.62,0.00011917,2]
[348190996,1736374252349,-568.79,0.00011917,2]
[348190997,1736374252359,-2372.76,0.00011917,2]
[348190998,1736374252369,-500.0,0.00011917,2]
[348190999,1736374252379,-1185.4,0.00011917,2]
[348191000,1736374252389,-1874.57,0.00011917,2]
[348191002,1736374252400,-1217.99,0.00011917,2]
[348191003,1736374252410,-500.0,0.00011917,2]
[348191004,1736374252419,-500.0,0.00011917,2]
[348191005,1736374252430,-920.56,0.00011917,2]
[348191006,1736374252441,-2562.5,0.00011917,2]
[348191007,1736374252450,-429.70395169,0.0001195,2]
[348191008,1736374252460,-500.0,0.00011955,2]
[348191009,1736374252470,-684.21,0.00011955,2]
[348191010,1736374252479,-1105.88,0.00011955,2]
[348191011,1736374252489,-812.69,0.00011955,2]
[348191012,1736374252498,-887.64,0.00011955,2]
[348191013,1736374252508,-500.0,0.00011955,2]
[348191014,1736374252518,-1000.0,0.00011955,2]
[348191015,1736374252527,-500.0,0.00011956,2]
[348191016,1736374252537,-1745.65,0.00011956,2]
[348191017,1736374252546,-1254.01,0.00011956,2]
[348191018,1736374252557,-1267.5684007,0.00012,2]
[348191019,1736374252566,-200.0,0.00012055,2]
[348191020,1736374252578,-202.76042521,0.00012067,2]
[348191021,1736374252588,-3000.0,0.0001218,2]
[348191022,1736374252598,-292.30698525,0.00012188,2]
[348191023,1736374252607,-500.0,0.00012189,2]
[348191024,1736374252618,-500.0,0.00012189,2]
[348191025,1736374252627,-500.0,0.00012189,2]
[348191026,1736374252637,-1184.83,0.00012189,2]
[348191027,1736374252647,-2822.92,0.00012189,2]
[348191028,1736374252657,-791.42,0.00012189,2]
[348191029,1736374252668,-604.89,0.00012189,2]
[348191030,1736374252677,-500.0,0.00012189,2]
[348191031,1736374252687,-500.0,0.00012189,2]
[348191032,1736374252696,-2124.34,0.00012189,2]
[348191033,1736374252706,-1365.63,0.00012189,2]
[348191034,1736374252716,-500.0,0.00012189,2]
[348191035,1736374252725,-2596.48,0.00012189,2]
[348191036,1736374252734,-689.69,0.00012189,2]
[348191037,1736374252743,-500.0,0.00012189,2]
[348191038,1736374252753,-500.0,0.00012189,2]
[348191039,1736374252763,-1399.1,0.00012189,2]
[348191040,1736374252773,-816.75,0.00012189,2]
[348191041,1736374252783,-838.45,0.00012189,2]
[348191042,1736374252793,-1739.36,0.00012189,2]
[348191043,1736374252802,-531.02,0.00012189,2]
[348191044,1736374252811,-500.0,0.0001219,2]
[348191045,1736374252822,-500.0,0.0001219,2]
[348191046,1736374252832,-500.0,0.0001219,2]
[348191047,1736374252842,-500.0,0.0001219,2]
[348191048,1736374252853,-225.19853751,0.0001219,2]
[348191049,1736374252863,-519.8,0.0001219,2]
[348191050,1736374252872,-500.0,0.0001219,2]
[348191051,1736374252883,-500.0,0.0001219,2]
[348191052,1736374252893,-614.24,0.0001219,2]
[348191053,1736374252903,-500.0,0.0001219,2]
[348191054,1736374252912,-500.0,0.0001219,2]
[348191055,1736374252923,-500.0,0.0001219,2]
[348191056,1736374252932,-507.8,0.0001219,2]
[348191057,1736374252943,-500.0,0.0001219,2]
[348191058,1736374252953,-598.967199,0.0001219,2]
[348191059,1736374252962,-582.56,0.0001219,2]
[348191060,1736374252971,-595.62,0.0001219,2]
[348191061,1736374252981,-500.0,0.0001219,2]
[348191062,1736374252991,-604.327869,0.0001219,2]
[348191063,1736374253001,-500.0,0.0001219,2]
[348191064,1736374253011,-985.85,0.0001219,2]
[348191065,1736374253020,-500.0,0.0001219,2]
[348191066,1736374253030,-500.0,0.0001219,2]
[348191067,1736374253040,-500.0,0.0001219,2]
[348191068,1736374253050,-500.0,0.0001219,2]
[348191069,1736374253060,-500.0,0.0001219,2]
[348191070,1736374253070,-500.0,0.0001219,2]
[348191071,1736374253079,-500.0,0.0001219,2]
[348191072,1736374253089,-209.86345333,0.0001219,2]
[348191073,1736374253099,-500.0,0.0001219,2]
[348191074,1736374253109,-500.0,0.0001219,2]
[348191075,1736374253119,-500.0,0.0001219,2]
[348191076,1736374253128,-500.0,0.0001219,2]
[348191077,1736374253138,-2012.04,0.0001219,2]
[348191078,1736374253148,-500.0,0.0001219,2]
[348191079,1736374253157,-509.2,0.0001219,2]
[348191080,1736374253167,-500.0,0.0001219,2]
[348191081,1736374253176,-555.17,0.0001219,2]
[348191082,1736374253187,-500.0,0.0001219,2]
[348191083,1736374253198,-500.0,0.0001219,2]
[348191084,1736374253208,-516.94,0.0001219,2]
[348191085,1736374253218,-2650.73,0.0001219,2]
[348191086,1736374253228,-500.0,0.0001219,2]
[348191087,1736374253238,-500.0,0.0001219,2]
[348191088,1736374253248,-814.33,0.0001219,2]
[348191089,1736374253258,-500.0,0.0001219,2]
[348191090,1736374253267,-500.0,0.0001219,2]
[348191091,1736374253277,-2244.55,0.0001219,2]
[348191092,1736374253287,-500.0,0.0001219,2]
[348191093,1736374253297,-1475.16,0.0001219,2]
[348191094,1736374253306,-500.0,0.0001219,2]
[348191095,1736374253315,-618.95,0.0001219,2]
[348191096,1736374253324,-500.0,0.0001219,2]
[348191097,1736374253334,-1755.78,0.0001219,2]
[348191098,1736374253344,-500.0,0.0001219,2]
[348191099,1736374253354,-1285.61,0.0001219,2]
[348191100,1736374253365,-2478.11,0.0001219,2]
[348191101,1736374253374,-1061.59,0.0001219,2]
[348191102,1736374253383,-500.0,0.0001219,2]
[348191103,1736374253393,-500.0,0.0001219,2]
[348191104,1736374253405,-500.0,0.0001219,2]
[348191105,1736374253414,-500.0,0.0001219,2]
[348191106,1736374253425,-687.93,0.0001219,2]
[348191107,1736374253436,-500.0,0.0001219,2]
[348191108,1736374253447,-500.0,0.0001219,2]
[348191109,1736374253457,-2314.79,0.0001219,2]
[348191110,1736374253467,-1106.22,0.0001219,2]
[348191111,1736374253476,-500.0,0.0001219,2]
[348191112,1736374253486,-515.66,0.0001219,2]
[348191113,1736374253495,-1752.27,0.0001219,2]
[348191114,1736374253505,-500.0,0.0001219,2]
[348191115,1736374253514,-703.34,0.0001219,2]
[348191116,1736374253524,-500.0,0.0001219,2]
[348191117,1736374253533,-503.53,0.0001219,2]
[348191118,1736374253542,-500.0,0.0001219,2]
[348191119,1736374253551,-857.32,0.0001219,2]
[348191120,1736374253560,-500.0,0.0001219,2]
[348191121,1736374253570,-1302.08,0.0001219,2]
[348191122,1736374253582,-1578.04,0.0001219,2]
[348191123,1736374253592,-500.0,0.0001219,2]
[348191124,1736374253601,-1098.41,0.0001219,2]
[348191125,1736374253611,-500.0,0.0001219,2]
[348191126,1736374253622,-500.0,0.0001219,2]
[348191127,1736374253631,-1348.88,0.0001219,2]
[348191128,1736374253641,-500.0,0.0001219,2]
[348191129,1736374253651,-500.0,0.0001219,2]
[348191130,1736374253661,-2453.48,0.0001219,2]
[348191131,1736374253671,-837.69,0.00012191,2]
[348191132,1736374253681,-500.0,0.00012191,2]
[348191133,1736374253691,-1266.37,0.00012191,2]
[348191134,1736374253700,-787.11,0.00012191,2]
[348191135,1736374253709,-500.0,0.00012191,2]
[348191136,1736374253719,-1166.62,0.00012191,2]
[348191137,1736374253892,-500.0,0.00012191,2]
[348191138,1736374253902,-565.92,0.00012191,2]
[348191139,1736374253911,-519.1,0.00012191,2]
[348191140,1736374253921,-500.0,0.00012191,2]
[348191141,1736374253930,-508.78,0.00012191,2]
[348191142,1736374253943,-533.06917264,0.00012191,2]
[348191143,1736374253952,-500.0,0.00012191,2]
[348191144,1736374253962,-1205.93,0.00012191,2]
[348191145,1736374253972,-500.0,0.00012191,2]
[348191146,1736374253982,-500.0,0.00012191,2]
[348191147,1736374253993,-712.18,0.00012191,2]
[348191148,1736374254002,-638.99,0.00012191,2]
[348191149,1736374254011,-612.36,0.00012191,2]
[348191150,1736374254021,-500.0,0.00012191,2]
[348191151,1736374254031,-595.66,0.00012191,2]
[348191152,1736374254040,-2799.24,0.00012191,2]
[348191153,1736374254049,-548.18,0.00012191,2]
[348191154,1736374254060,-500.0,0.00012191,2]
[348191155,1736374254069,-1038.02,0.00012191,2]
[348191156,1736374254079,-1613.85,0.00012191,2]
[348191157,1736374254088,-500.0,0.00012191,2]
[348191158,1736374254097,-1455.22,0.00012191,2]
[348191159,1736374254107,-500.0,0.00012191,2]
[348191160,1736374254116,-2149.02,0.00012191,2]
[348191161,1736374254126,-4333.65,0.00012191,2]
[348191162,1736374254135,-1960.58,0.00012191,2]
[348191163,1736374254144,-1063.62,0.00012191,2]
[348191164,1736374254154,-568.79,0.00012191,2]
[348191165,1736374254163,-2372.76,0.00012191,2]
[348191166,1736374254173,-500.0,0.00012191,2]
[348191167,1736374254182,-1185.4,0.00012191,2]
[348191168,1736374254197,-1874.57,0.00012191,2]
[348191169,1736374254207,-1217.99,0.00012191,2]
[348191170,1736374254216,-500.0,0.00012191,2]
[348191171,1736374254226,-500.0,0.00012191,2]
[348191172,1736374254235,-920.56,0.00012191,2]
[348191173,1736374254245,-2562.5,0.00012191,2]
[348191174,1736374254255,-35422.8645,0.000122,2]
[348191175,1736374254265,-266.3523318,0.000122,2]
[348191176,1736374254274,-500.0,0.00012229,2]
[348191177,1736374254283,-684.21,0.00012229,2]
[348191178,1736374254292,-1105.88,0.00012229,2]
[348191179,1736374254302,-812.69,0.00012229,2]
[348191180,1736374254312,-887.64,0.00012229,2]
[348191181,1736374254321,-500.0,0.00012229,2]
[348191182,1736374254332,-889.48608853,0.00012229,2]
[348191183,1736374254341,-500.0,0.0001223,2]
[348191184,1736374254351,-1745.65,0.0001223,2]
[348191185,1736374254360,-1254.01,0.0001223,2]
[348191186,1736374254369,-202.76042521,0.00012233,2]
[348191187,1736374254378,-383.734,0.00012254,2]
[348191188,1736374254387,-1000.0,0.0001227,2]
[348191189,1736374254396,-1000.0,0.0001227,2]
[348191190,1736374254405,-1000.0,0.0001227,2]
[348191191,1736374254414,-500.0,0.0001227,2]
[348191192,1736374254423,-1000.0,0.0001227,2]
[348191193,1736374254432,-500.0,0.0001227,2]
[348191194,1736374254446,-500.0,0.0001227,2]
[348191195,1736374254456,-1000.0,0.0001227,2]
[348191196,1736374254466,-500.0,0.0001227,2]
[348191197,1736374254476,-1000.0,0.0001227,2]
[348191198,1736374254486,-992.15894642,0.0001227,2]
[348191199,1736374254496,-1000.0,0.0001227,2]
[348191200,1736374254506,-1000.0,0.0001227,2]
[348191201,1736374254515,-6301.01,0.00012271,2]
[348191202,1736374254524,-847.6129,0.00012299,2]
[348191203,1736374254534,-500.0,0.00012299,2]
[348191204,1736374254544,-1045.0,0.00012299,2]
[348191205,1736374254554,-1386368.50205375,0.000123,4]
[348191206,1736374254564,-707021.07926056,0.000123,2]
[348191207,1736374254575,-404049.10566145,0.000123,2]
[348191208,1736374254843,-1020.0,0.000123,2]
[348191209,1736374254875,-521.63,0.00010859,2]
[348191210,1736374254885,-671.25,0.00011641,2]
[348191211,1736374254895,-566.61,0.00011916,2]
[348191212,1736374254904,-1207.22699,0.000123,2]
[348191213,1736374255214,-469.31070039,9.999e-05,2]
[348191214,1736374255229,-30.68929961,9.999e-05,2]
[348191215,1736374255239,-500.0,0.00010273,2]
[348191216,1736374255248,-500.0,0.00010546,2]
[348191217,1736374255258,-500.0,0.0001082,2]
[348191218,1736374255267,-1014.83,0.00011095,2]
[348191219,1736374255277,-521.63,0.00011133,2]
[348191220,1736374255287,-246.99664774,0.00011369,2]
[348191221,1736374255298,-767.83335226,0.00011369,2]
[348191222,1736374255307,-521.63,0.00011407,2]
[348191223,1736374255317,-671.25,0.00011915,2]
[348191224,1736374255326,-671.25,0.00012189,2]
[348191225,1736374255335,-566.61,0.0001219,2]
[348191226,1736374255345,-7111.70867418,0.000123,2]
[348191227,1736374255356,-2429.4141106,0.000123,2]
[348191228,1736374255385,-8151.40651174,0.000123,2]
[348191229,1736374255760,-250.0,9.77e-05,2]
[348191230,1736374255770,-500.0,9.999e-05,2]
[348191231,1736374255780,-158.44096002,0.00010173,2]
[348191232,1736374255790,-500.0,0.00010547,2]
[348191233,1736374255799,-1014.83,0.00011643,2]
[348191234,1736374255810,-521.63,0.00011681,2]
[348191235,1736374255819,-506.28330033,0.00011917,2]
[348191236,1736374255831,-508.54669967,0.00011917,2]
[348191237,1736374255840,-187.38330033,0.00011955,2]
[348191238,1736374255851,-334.24669967,0.00011955,2]
[348191239,1736374255860,-591.90169548,0.00012191,2]
[348191240,1736374255883,-422.92830452,0.00012191,2]
[348191241,1736374255892,-77.18558382,0.00012229,2]
[348191242,1736374256319,-500.0,0.00010546,2]
[348191243,1736374256329,-500.0,0.00010546,2]
[348191244,1736374256338,-573.57,0.0001082,2]
[348191245,1736374256347,-500.0,0.0001082,2]
[348191246,1736374256357,-500.0,0.0001082,2]
[348191247,1736374256367,-444.44441618,0.00012229,2]
[348191248,1736374256377,-6770.06499753,0.000123,2]
[348191249,1736374256389,-16400.44609661,0.000123,2]
[348191250,1736374256420,-9525.97295889,0.000123,2]
[348191251,1736374256610,-500.0,0.0001082,2]
[348191252,1736374256622,-334.32880564,0.000123,2]
[348191256,1736375155127,849.81,8.219e-05,2]
[348191274,1736375431999,-165.6949,9.059e-05,2]
[348191275,1736375432008,-1272.89040484,9.158e-05,2]
[348191276,1736375432017,-300.0,9.158e-05,2]
[348191277,1736375432026,-1272.89040483,9.159e-05,2]
[348191278,1736375432035,-3526.07292904,9.159e-05,2]
[348191279,1736375432046,-4442.056675,9.159e-05,2]
[348191280,1736375432057,-3332.6871248,9.159e-05,2]
[348191281,1736375432070,-6897.6099792,9.159e-05,2]
[348191282,1736375432092,-760.92329196,9.159e-05,2]
[348191283,1736375432101,-1272.89040483,9.159e-05,2]
[348191284,1736375432110,-186.98138003,9.159e-05,2]
[348191285,1736375432119,-250.0,9.489e-05,2]
[348191286,1736375432129,-5224.66,9.525e-05,2]
[348191287,1736375432139,-402.32718162,9.597e-05,2]
[348191288,1736375432150,-450.0,9.597e-05,2]
[348191289,1736375432234,-450.0,9.597e-05,2]
[348191290,1736375432246,-1845.44940017,9.597e-05,2]
[348191304,1736375437701,-20752.22341821,9.597e-05,2]
[348191305,1736375437710,-225.31,9.604e-05,2]
[348191306,1736375437719,-186.98138002,9.604e-05,2]
[348191307,1736375437729,-250.0,9.622e-05,2]
[348191308,1736375437738,-151.9,9.659e-05,2]
[348191309,1736375437747,-152.1,9.659e-05,2]
[348191310,1736375437757,-152.54,9.659e-05,2]
[348191311,1736375437766,-150.8,9.659e-05,2]
[348191312,1736375437776,-2000.0,9.827e-05,2]
[348191313,1736375437785,-1000.0,9.9e-05,2]
[348191314,1736375437795,-1058.85,9.999e-05,2]
[348191315,1736375437804,-500.0,9.999e-05,2]
[348191316,1736375437813,-2129.37,9.999e-05,2]
[348191317,1736375437822,-500.0,9.999e-05,2]
[348191318,1736375437832,-959.19,9.999e-05,2]
[348191319,1736375437841,-500.0,9.999e-05,2]
[348191320,1736375437851,-519.16,9.999e-05,2]
[348191321,1736375438074,-735.26,9.999e-05,2]
[348191322,1736375438084,-1067.98,9.999e-05,2]
[348191323,1736375438093,-1323.75,9.999e-05,2]
[348191324,1736375438103,-841.83,9.999e-05,2]
[348191326,1736375438112,-1783.11,9.999e-05,2]
[348191328,1736375438122,-500.0,9.999e-05,2]
[348191330,1736375438131,-3640.06,9.999e-05,2]
[348191332,1736375438140,-1415.02,9.999e-05,2]
[348191333,1736375438150,-1000.0,9.999e-05,2]
[348191334,1736375438159,-1674.48,9.999e-05,2]
[348191335,1736375438168,-991.82,9.999e-05,2]
[348191336,1736375438178,-500.0,9.999e-05,2]